[Event "Coimbra Queima Fitas Open 2024"]
[Site "Coimbra"]
[Date "2024.04.28"]
[Round "6.5"]
[White "Martins, Bruno Andre Leite"]
[Black "Pacetti Terra, Nicolas Marcelo"]
[Result "1-0"]
[ECO "C82"]
[WhiteElo "2360"]
[BlackElo "2019"]
[Annotator "TA"]
[PlyCount "143"]
[EventDate "2024.04.23"]
[EventType "swiss"]
[EventCountry "POR"]
[SourceTitle "playchess.com"]
[Source "ChessBase"]
[SourceQuality "1"]
[TimeControl "5400+30"]

{[%evp 23,143,0,0,0,0,-8,0,0,17,0,38,2,89,52,91,17,16,0,0,7,9,23,20,0,0,15,14,16,56,16,54,55,63,0,0,0,0,0,0,0,53,45,45,45,45,54,62,52,85,85,73,66,366,47,55,55,55,41,41,41,48,48,48,48,48,48,49,49,56,56,56,56,56,56,56,56,56,56,56,56,56,56,56,56,56,56,56,56,56,56,56,56,4152,4152,4152,4152,4152,4152,4152,4152,4152,4152,4152,4152,4152,4152,4152,4152,4145,4145,4145,4145,4145,4145,4145,4145,29987,29988,29988,29983,29989,4141]} 1. e4 {[%emt 0:05:30]} e5 {[%emt 0:00:10]} 2. Nf3 {[%emt 0:00:05]} Nc6 {[%emt 0:00:06]} 3. Bb5 {[%emt 0:00:21]} a6 {[%emt 0:00:28]} 4. Ba4 {[%emt 0:00:06]} Nf6 {[%emt 0:00:08]} 5. O-O {[%emt 0:01:25]} Nxe4 {[%emt 0:00:10]} 6. d4 {[%emt 0:00:29]} b5 {[%emt 0:00:08]} 7. Bb3 {[%emt 0:00:04]} d5 {[%emt 0:00:06]} 8. dxe5 {[%emt 0:00:39]} Be6 {[%emt 0:00:11]} 9. c3 {[%emt 0:00:10]} Bc5 {[%emt 0:01:22]} 10. Bc2 {[%emt 0:00:09]} O-O {[%emt 0:00:08]} 11. Nbd2 {[%emt 0:00:06]} Nxf2 {[%emt 0:00:57]} 12. Rxf2 {[%emt 0:00:03]} f6 {[%emt 0:00:16]} 13. Nf1 {[%emt 0:00:17] C82: Open Ruy Lopez: 9 c3 without 9...Be7.} Bxf2+ {[%emt 0:00:09]} 14. Kxf2 {[%emt 0:00:06]} fxe5 {[%emt 0:00:08] Strongly threatening ...e4.} 15. Kg1 {[%emt 0:00:09]} h6 {[%emt 0:39:20]} 16. Qe1 {[%emt 0:14:43]} Qf6 {[%emt 0:06:26]} 17. Be3 {[%emt 0:02:28]} d4 $146 {[%emt 0:11:06]} (17... e4 $11 18. Nd4 Nxd4 19. Bxd4 Qf4) ({Predecessor:} 17... Rad8 18. Ng3 Bg4 19. Nd2 e4 20. Nb3 Ne5 21. Bd4 h5 22. h3 Bf3 23. Bxe5 Qxe5 {0-1 Yan,N (2118)-Campos Jimenez,A (2292) Sunnyvale Independence Day op 2023 (4)}) 18. Bf2 {[%emt 0:02:32]} Bd5 {[%emt 0:00:25] Inhibits Qe4.} 19. Be4 {[%emt 0:06:05]} (19. N1d2 $16) 19... Qe6 {[%emt 0:07:38]} 20. Ng3 {[%emt 0:04:17]} Rad8 {[%emt 0:05:30]} 21. a4 {[%emt 0:03:50]} Rf4 {[%emt 0:02:01]} 22. axb5 {[%emt 0:02:09]} axb5 {[%emt 0:00:37][%cal Ob5b4]} 23. Rc1 {[%emt 0:13:51]} ({Much worse is} 23. cxd4 Nxd4 24. Bxd4 (24. Nxd4 exd4 25. Bd3 Qf7 $15) 24... exd4 $11) 23... Bxe4 {[%emt 0:01:21]} 24. Nxe4 {[%emt 0:00:04]} Qd5 {[%emt 0:00:22]} 25. Nfd2 {[%emt 0:01:40]} b4 {[%emt 0:12:46]} 26. cxd4 {[%emt 0:08:55]} exd4 {[%emt 0:00:25]} 27. Rc5 {[%emt 0:01:41]} Qe6 {[%emt 0:00:22] Inhibits Nf6+.} 28. Qc1 {[%emt 0:04:10]} ({White should try} 28. h3 $14) 28... Ne5 $11 {[%emt 0:04:51][%cal Of4e4] ...Rxe4! would now be deadly.} 29. Rxc7 {[%emt 0:01:13]} Nd3 {[%emt 0:02:27][%csl LRc1,LRe4]} 30. Qc4 {[%emt 0:01:43]} Qxc4 {[%emt 0:01:10]} 31. Rxc4 {[%emt 0:00:10]} Nxb2 {[%emt 0:00:56]} ({Black should play} 31... Re8 $11) 32. Rxb4 $14 {[%emt 0:00:07]} (32. Rxd4 Rxd4 33. Bxd4 Nc4 $11) 32... Nd3 {[%emt 0:00:26]} 33. Rxd4 {[%emt 0:00:25]} Rxd4 {[%emt 0:00:25]} 34. Bxd4 {[%emt 0:00:02]} Nc1 {[%emt 0:01:09] Hoping for ...Ne2+.} 35. Bf2 {[%emt 0:02:29]} Kf7 {[%emt 0:02:11]} 36. g3 {[%emt 0:02:04]} Rg4 {[%emt 0:00:50]} 37. Be3 {[%emt 0:00:46]} Nb3 $2 {[%emt 0:01:06][%mdl 8192] [#]} 38. Ng5+ $2 {[%emt 0:01:16]} ({Only move:} 38. h3 $1 $18 Nxd2 39. Nd6+ Kg8 40. hxg4 Nf3+ 41. Kg2 Ne1+ 42. Kf2) 38... hxg5 $14 {[%emt 0:00:20]} 39. Nxb3 {[%emt 0:00:03]} Rb4 {[%emt 0:00:18]} 40. Nd2 {[%emt 0:01:04]} g4 {[%emt 0:00:06]} 41. Kf2 {[%emt 0:00:17]} Ke6 {[%emt 0:00:42]} 42. Bc5 {[%emt 0:01:32]} Ra4 {[%emt 0:00:49]} 43. Ke3 {[%emt 0:00:28]} Kf5 {[%emt 0:00:23]} 44. Kd3 {[%emt 0:00:18]} Ra1 {[%emt 0:00:35]} 45. Bd4 {[%emt 0:05:19][%csl LRa1,LRg7]} Rh1 {[%emt 0:00:15]} 46. Bxg7 {[%emt 0:00:05]} Rxh2 {[%emt 0:00:10]} 47. Nf1 {[%emt 0:00:07]} Rh7 {[%emt 0:01:26]} 48. Ne3+ {[%emt 0:00:05]} Kg5 {[%emt 0:00:21]} 49. Be5 {[%emt 0:00:10]} Rd7+ {[%emt 0:00:27]} 50. Ke4 {[%emt 0:00:07]} Re7 {[%emt 0:00:36]} 51. Nd5 {[%emt 0:01:38]} Re8 {[%emt 0:00:38]} 52. Kd4 {[%emt 0:00:10]} Kf5 {[%emt 0:00:33]} 53. Ne3+ {[%emt 0:00:13]} Kg5 {[%emt 0:00:12]} 54. Bf4+ {[%emt 0:00:05]} Kh5 {[%emt 0:00:07]} 55. Kd5 {[%emt 0:01:06]} Ra8 {[%emt 0:01:12]} 56. Ke6 {[%emt 0:00:26]} Ra6+ {[%emt 0:00:16]} 57. Kf5 {[%emt 0:00:22]} Ra5+ $2 {[%emt 0:00:10][%mdl 8192]} (57... Rf6+ $14 58. Ke5 Rf8) 58. Be5 $18 {[%emt 0:00:10]} Ra4 {[%emt 0:01:03]} 59. Nd5 {[%emt 0:00:22]} Kh6 {[%emt 0:00:30]} 60. Nf6 {[%emt 0:00:31]} Ra3 {[%emt 0:00:31]} 61. Nxg4+ {[%emt 0:00:11]} Kh7 {[%emt 0:00:12]} 62. Nf6+ {[%emt 0:00:22]} Kh6 {[%emt 0:00:30]} 63. Bf4+ {[%emt 0:01:36]} Kg7 {[%emt 0:00:06]} 64. g4 {[%emt 0:01:55]} Ra5+ {[%emt 0:01:06]} 65. Be5 {[%emt 0:00:12]} Ra2 {[%emt 0:00:19]} 66. Nd5+ {[%emt 0:01:30]} Kf7 {[%emt 0:00:14]} 67. Nf4 {[%emt 0:00:29]} Ra5 {[%emt 0:01:03]} 68. g5 {[%emt 0:00:07]} Ra6 {[%emt 0:00:27]} 69. g6+ {[%emt 0:00:59]} Rxg6 {[%emt 0:00:33]} 70. Nxg6 {[%emt 0:00:03]} Ke8 {[%emt 0:00:09]} 71. Ke6 {[%emt 0:00:06]} Kd8 {[%emt 0:00:05]} 72. Ne7 {[%emt 0:00:03]} 1-0

[Event "Coimbra Queima Fitas Open 2024"]
[Site "Coimbra"]
[Date "2024.04.28"]
[Round "6.6"]
[White "Povshednyi, Ivan"]
[Black "Meira, Joao Pedro Pires Car"]
[Result "1-0"]
[ECO "A13"]
[WhiteElo "2249"]
[BlackElo "1967"]
[Annotator "RC"]
[PlyCount "133"]
[EventDate "2024.04.23"]
[EventType "swiss"]
[EventCountry "POR"]
[SourceTitle "playchess.com"]
[Source "ChessBase"]
[SourceQuality "1"]
[TimeControl "5400+30"]

1. c4 {[%emt 0:00:03]} e6 {[%emt 0:01:25]} 2. Nf3 {[%emt 0:02:14]} f5 {[%emt 0:02:35]} 3. g3 {[%emt 0:00:19]} b6 {[%emt 0:00:10]} 4. Bg2 {[%emt 0:00:28]} Bb7 {[%emt 0:00:06]} 5. a3 {[%emt 0:02:43]} Be7 {[%emt 0:03:20]} 6. Nc3 {[%emt 0:01:14]} Nf6 {[%emt 0:01:12]} 7. b4 {[%emt 0:00:47]} Ne4 {[%emt 0:07:35]} 8. Bb2 {[%emt 0:00:31]} Bf6 {[%emt 0:00:16]} 9. Qc2 {[%emt 0:01:45]} Ng5 {[%emt 0:08:04]} 10. O-O {[%emt 0:10:24]} Nxf3+ {[%emt 0:01:43]} 11. exf3 {[%emt 0:00:14]} Nc6 {[%emt 0:09:21]} 12. Ne2 {[%emt 0:03:03]} Bxb2 {[%emt 0:05:51]} 13. Qxb2 {[%emt 0:00:03]} Qf6 {[%emt 0:00:10]} 14. Qxf6 {[%emt 0:07:44]} gxf6 {[%emt 0:01:34]} 15. d4 {[%emt 0:00:14]} O-O-O {[%emt 0:00:49]} 16. f4 {[%emt 0:06:23]} Ne7 {[%emt 0:01:04]} 17. Nc3 {[%emt 0:00:55]} Bxg2 {[%emt 0:02:17]} 18. Kxg2 {[%emt 0:00:26]} d5 {[%emt 0:00:58]} 19. Rfe1 {[%emt 0:13:12]} Kd7 {[%emt 0:01:59]} 20. Rad1 {[%emt 0:03:53]} c6 {[%emt 0:03:06]} 21. c5 {[%emt 0:01:49]} b5 {[%emt 0:08:48]} 22. a4 {[%emt 0:02:09]} a6 {[%emt 0:00:04]} 23. Ra1 {[%emt 0:00:10]} Ra8 {[%emt 0:00:23]} 24. Re2 {[%emt 0:00:18]} Rhe8 {[%emt 0:00:13]} 25. Rea2 {[%emt 0:02:59]} Reb8 {[%emt 0:03:57]} 26. Kf1 {[%emt 0:11:30]} Rb7 {[%emt 0:00:33]} 27. Re1 {[%emt 0:05:48]} Re8 {[%emt 0:00:40]} 28. axb5 {[%emt 0:03:29]} axb5 {[%emt 0:00:05]} 29. Ra6 {[%emt 0:01:08]} h5 {[%emt 0:00:31]} 30. h4 {[%emt 0:00:45]} Ng6 {[%emt 0:00:09]} 31. Rea1 {[%emt 0:01:58]} Reb8 {[%emt 0:00:20]} 32. Re1 {[%emt 0:01:08]} Re8 {[%emt 0:00:45]} 33. Re2 {[%emt 0:00:14]} Nh8 {[%emt 0:01:35]} 34. Nxd5 {[%emt 0:00:36]} exd5 {[%emt 0:09:31]} 35. Rxe8 {[%emt 0:00:05]} Kxe8 {[%emt 0:00:06]} 36. Ra8+ {[%emt 0:00:03]} Kf7 {[%emt 0:00:10]} 37. Rxh8 {[%emt 0:00:05]} Re7 {[%emt 0:00:20]} 38. Rc8 {[%emt 0:03:57]} Re6 {[%emt 0:04:25]} 39. f3 {[%emt 0:02:12]} Kg7 {[%emt 0:00:13]} 40. Kf2 {[%emt 0:00:28]} Kg6 {[%emt 0:01:17]} 41. Rc7 {[%emt 0:01:07]} Kh6 {[%emt 0:01:19]} 42. Kg1 {[%emt 0:01:59]} Kg6 {[%emt 0:01:24]} 43. Kf1 {[%emt 0:00:17]} Kh6 {[%emt 0:00:33]} 44. Rd7 {[%emt 0:00:43]} Kg6 {[%emt 0:01:05]} 45. Kf2 {[%emt 0:00:11]} Re8 {[%emt 0:00:06]} 46. Rd6 {[%emt 0:03:20]} Rc8 {[%emt 0:00:06]} 47. Ke3 {[%emt 0:00:48]} Re8+ {[%emt 0:00:16]} 48. Kf2 {[%emt 0:00:29]} Rc8 {[%emt 0:00:03]} 49. Kg2 {[%emt 0:00:18]} Kf7 {[%emt 0:00:53]} 50. g4 {[%emt 0:01:19]} fxg4 {[%emt 0:02:30]} 51. fxg4 {[%emt 0:00:08]} Rg8 {[%emt 0:00:49]} 52. g5 {[%emt 0:00:16]} fxg5 {[%emt 0:03:54]} 53. hxg5 {[%emt 0:00:18]} Re8 {[%emt 0:00:19]} 54. Rxc6 {[%emt 0:00:29]} Re4 {[%emt 0:00:04]} 55. Kf3 {[%emt 0:00:59]} Rxd4 {[%emt 0:00:39]} 56. f5 {[%emt 0:00:15]} Rg4 {[%emt 0:09:43]} 57. Rc7+ {[%emt 0:00:15]} Kf8 {[%emt 0:02:43]} 58. g6 {[%emt 0:00:18]} Rg1 {[%emt 0:02:38]} 59. Kf4 {[%emt 0:00:20]} d4 {[%emt 0:01:29]} 60. Rd7 {[%emt 0:02:01]} Rg4+ {[%emt 0:00:11]} 61. Ke5 {[%emt 0:00:16]} h4 {[%emt 0:00:24]} 62. c6 {[%emt 0:00:18]} Ke8 {[%emt 0:00:43]} 63. Rh7 {[%emt 0:00:34]} d3 {[%emt 0:00:13]} 64. Kf6 {[%emt 0:01:22]} Kd8 {[%emt 0:00:35]} 65. Rd7+ {[%emt 0:00:06]} Kc8 {[%emt 0:01:10]} 66. Rxd3 {[%emt 0:00:07]} Kc7 {[%emt 0:00:10]} 67. g7 {[%emt 0:00:13]} 1-0

[Event "Coimbra Queima Fitas Open 2024"]
[Site "Coimbra"]
[Date "2024.04.28"]
[Round "6.7"]
[White "Maloberti, David"]
[Black "Farias, David Nuno Moita Est"]
[Result "0-1"]
[ECO "E92"]
[WhiteElo "1975"]
[BlackElo "2194"]
[Annotator "NA RC"]
[PlyCount "58"]
[EventDate "2024.04.23"]
[EventType "swiss"]
[EventCountry "POR"]
[SourceTitle "playchess.com"]
[Source "ChessBase"]
[SourceQuality "1"]
[TimeControl "5400+30"]

1. d4 {[%emt 0:00:02]} Nf6 {[%emt 0:00:01]} 2. c4 {[%emt 0:00:06]} g6 {[%emt 0:00:12]} 3. Nc3 {[%emt 0:00:05]} Bg7 {[%emt 0:00:30]} 4. e4 {[%emt 0:00:06]} d6 {[%emt 0:00:13]} 5. Nf3 {[%emt 0:00:07]} O-O {[%emt 0:00:33]} 6. Be2 {[%emt 0:00:05]} e5 {[%emt 0:00:26]} 7. d5 {[%emt 0:01:41]} Na6 {[%emt 0:01:19]} 8. O-O {[%emt 0:03:18]} Nc5 {[%emt 0:08:10]} 9. Qc2 {[%emt 0:00:08]} a5 {[%emt 0:11:04]} 10. Be3 {[%emt 0:08:08]} b6 {[%emt 0:05:50]} 11. Nd2 {[%emt 0:03:22]} Bd7 {[%emt 0:20:43]} 12. b3 {[%emt 0:01:24]} h5 {[%emt 0:07:24]} 13. a3 {[%emt 0:08:10]} Ng4 {[%emt 0:03:17]} 14. Bxg4 {[%emt 0:01:54]} hxg4 {[%emt 0:00:45]} 15. b4 {[%emt 0:00:08]} Na6 {[%emt 0:07:37]} 16. bxa5 {[%emt 0:03:24]} f5 {[%emt 0:00:21]} 17. f4 {[%emt 0:04:31]} exf4 {[%emt 0:04:15]} 18. Bxf4 {[%emt 0:00:09]} Bd4+ {[%emt 0:12:35]} 19. Kh1 {[%emt 0:00:09]} Qf6 {[%emt 0:00:18]} 20. Rac1 {[%emt 0:02:05]} g5 {[%emt 0:00:14]} 21. Bg3 {[%emt 0:00:12]} f4 {[%emt 0:00:24]} 22. Ne2 {[%emt 0:06:26]} Qh8 {[%emt 0:02:30]} 23. Be1 {[%emt 0:12:53]} Be3 {[%emt 0:06:34]} 24. axb6 {[%emt 0:07:17]} Rf7 {[%emt 0:02:29]} 25. h3 {[%emt 0:09:23]} f3 {[%emt 0:03:26]} 26. Ng1 {[%emt 0:03:15]} f2 {[%emt 0:01:27]} 27. Bxf2 {[%emt 0:00:12]} Bxf2 {[%emt 0:00:42]} 28. b7 {[%emt 0:03:19]} Raf8 {[%emt 0:00:09]} 29. Ndf3 {[%emt 0:01:56]} Bxg1 {[%emt 0:00:55]} 0-1

[Event "Coimbra Queima Fitas Open 2024"]
[Site "Coimbra"]
[Date "2024.04.28"]
[Round "6.8"]
[White "Marques, Pedro Jorge Godinho"]
[Black "Monteiro, Paulo Alexandre Gome"]
[Result "0-1"]
[ECO "B77"]
[WhiteElo "1856"]
[BlackElo "2122"]
[Annotator "NA RC"]
[PlyCount "56"]
[EventDate "2024.04.23"]
[EventType "swiss"]
[EventCountry "POR"]
[SourceTitle "playchess.com"]
[Source "ChessBase"]
[SourceQuality "1"]
[TimeControl "5400+30"]

1. Nf3 {[%emt 0:08:58]} c5 {[%emt 0:01:06]} 2. e4 {[%emt 0:01:38]} Nc6 {[%emt 0:00:46]} 3. Nc3 {[%emt 0:04:57]} g6 {[%emt 0:01:17]} 4. d4 {[%emt 0:03:55]} cxd4 {[%emt 0:00:10]} 5. Nxd4 {[%emt 0:00:05]} Bg7 {[%emt 0:00:12]} 6. Be3 {[%emt 0:02:29]} d6 {[%emt 0:02:40]} 7. Qd2 {[%emt 0:01:49]} Nf6 {[%emt 0:00:10]} 8. f3 {[%emt 0:03:18]} O-O {[%emt 0:00:27]} 9. Bc4 {[%emt 0:01:46]} Bd7 {[%emt 0:00:43]} 10. g4 {[%emt 0:07:20]} Ne5 {[%emt 0:13:17]} 11. Be2 {[%emt 0:08:49]} Rc8 {[%emt 0:03:39]} 12. Bh6 {[%emt 0:03:56]} Bxh6 {[%emt 0:20:44]} 13. Qxh6 {[%emt 0:00:49]} Qb6 {[%emt 0:03:17]} 14. O-O-O {[%emt 0:06:36]} Rxc3 {[%emt 0:00:27]} 15. bxc3 {[%emt 0:00:37]} d5 {[%emt 0:17:43]} 16. Nf5 {[%emt 0:08:09]} Bxf5 {[%emt 0:01:47]} 17. gxf5 {[%emt 0:03:52]} dxe4 {[%emt 0:09:48]} 18. fxg6 {[%emt 0:02:29]} hxg6 {[%emt 0:00:22]} 19. Rhg1 {[%emt 0:02:16]} exf3 {[%emt 0:08:02]} 20. Bxf3 {[%emt 0:04:44]} Nxf3 {[%emt 0:02:01]} 21. Rg3 {[%emt 0:03:29]} Ne5 {[%emt 0:03:29]} 22. Rd4 {[%emt 0:01:30]} Nfg4 {[%emt 0:05:05]} 23. Rgxg4 {[%emt 0:09:17]} Nxg4 {[%emt 0:00:13]} 24. Rxg4 {[%emt 0:00:41]} Qf6 {[%emt 0:00:45]} 25. h4 {[%emt 0:02:52]} Qxc3 {[%emt 0:01:45]} 26. Kb1 {[%emt 0:04:34]} Rd8 {[%emt 0:00:32]} 27. Rg1 {[%emt 0:01:00]} Qb4+ {[%emt 0:00:22]} 28. Kc1 {[%emt 0:00:25]} Qd4 {[%emt 0:00:12]} 0-1

[Event "Coimbra Queima Fitas Open 2024"]
[Site "Coimbra"]
[Date "2024.04.28"]
[Round "6.9"]
[White "Ryabukhina, Veronika"]
[Black "Novais, Carlos Joao Fernande"]
[Result "1/2-1/2"]
[ECO "A53"]
[WhiteElo "1738"]
[BlackElo "2101"]
[Annotator "NA RC"]
[PlyCount "165"]
[EventDate "2024.04.23"]
[EventType "swiss"]
[EventCountry "POR"]
[SourceTitle "playchess.com"]
[Source "ChessBase"]
[SourceQuality "1"]
[TimeControl "5400+30"]

1. d4 {[%emt 0:00:03]} Nf6 {[%emt 0:00:13]} 2. c4 {[%emt 0:00:09]} d6 {[%emt 0:00:05]} 3. Nc3 {[%emt 0:00:15]} Nbd7 {[%emt 0:00:05]} 4. e4 {[%emt 0:01:14]} e5 {[%emt 0:00:07]} 5. d5 {[%emt 0:01:24]} Nc5 {[%emt 0:00:05]} 6. Qc2 {[%emt 0:00:26]} a5 {[%emt 0:00:03]} 7. h3 {[%emt 0:01:08]} Be7 {[%emt 0:00:05]} 8. Nf3 {[%emt 0:01:02]} h5 {[%emt 0:02:05]} 9. Be2 {[%emt 0:04:48]} Nh7 {[%emt 0:04:51]} 10. Be3 {[%emt 0:09:55]} b6 {[%emt 0:00:51]} 11. Nd2 {[%emt 0:00:38]} g6 {[%emt 0:01:34]} 12. O-O-O {[%emt 0:21:49]} Bg5 {[%emt 0:00:30]} 13. Bxg5 {[%emt 0:00:30]} Qxg5 {[%emt 0:00:30]} 14. g3 {[%emt 0:00:30]} h4 {[%emt 0:00:30]} 15. g4 {[%emt 0:08:10]} Qf4 {[%emt 0:06:57]} 16. Rdf1 {[%emt 0:00:43]} Bd7 {[%emt 0:06:45]} 17. Bd3 {[%emt 0:03:07]} Ng5 {[%emt 0:01:34]} 18. Ne2 {[%emt 0:08:30]} Qf6 {[%emt 0:00:30]} 19. f3 {[%emt 0:04:31]} a4 {[%emt 0:01:18]} 20. Qc3 {[%emt 0:01:05]} Nh7 {[%emt 0:03:36]} 21. Kc2 {[%emt 0:04:10]} O-O {[%emt 0:02:28]} 22. f4 {[%emt 0:00:44]} exf4 {[%emt 0:00:08]} 23. Qxf6 {[%emt 0:00:31]} Nxf6 {[%emt 0:00:06]} 24. Rxf4 {[%emt 0:00:23]} Nh7 {[%emt 0:00:06]} 25. Nd4 {[%emt 0:01:34]} Rae8 {[%emt 0:02:13]} 26. Rf2 {[%emt 0:01:44]} Ng5 {[%emt 0:01:46]} 27. Re2 {[%emt 0:00:21]} f6 {[%emt 0:03:50]} 28. N4f3 {[%emt 0:01:25]} Nf7 {[%emt 0:01:31]} 29. Kc3 {[%emt 0:00:36]} g5 {[%emt 0:00:15]} 30. Nd4 {[%emt 0:03:34]} Ne5 {[%emt 0:00:09]} 31. Bc2 {[%emt 0:00:09]} Ng6 {[%emt 0:00:05]} 32. Re3 {[%emt 0:01:15]} Rb8 {[%emt 0:01:20]} 33. b4 {[%emt 0:00:45]} axb3 {[%emt 0:00:13]} 34. axb3 {[%emt 0:00:09]} Ra8 {[%emt 0:00:11]} 35. Ne2 {[%emt 0:05:10]} b5 {[%emt 0:01:03]} 36. Rf3 {[%emt 0:02:47]} Ra2 {[%emt 0:02:09]} 37. cxb5 {[%emt 0:02:16]} Ne5 {[%emt 0:01:01]} 38. Rf2 {[%emt 0:00:37]} Bxb5 {[%emt 0:00:17]} 39. Nc1 {[%emt 0:00:39]} Ra1 {[%emt 0:01:28]} 40. Re1 {[%emt 0:00:36]} Kg7 {[%emt 0:01:40]} 41. Nf3 {[%emt 0:01:35]} Ng6 {[%emt 0:04:16]} 42. Nd4 {[%emt 0:00:55]} Bd7 {[%emt 0:00:08]} 43. Kb2 {[%emt 0:02:18]} Raa8 {[%emt 0:00:44]} 44. Nd3 {[%emt 0:01:03]} Rab8 {[%emt 0:01:15]} 45. Kc3 {[%emt 0:00:14]} Nxd3 {[%emt 0:04:22]} 46. Bxd3 {[%emt 0:00:06]} Nf4 {[%emt 0:00:12]} 47. Bf1 {[%emt 0:00:06]} Ra8 {[%emt 0:00:06]} 48. Rc2 {[%emt 0:01:00]} Rfb8 {[%emt 0:00:48]} 49. Kd2 {[%emt 0:00:51]} Rb7 {[%emt 0:00:27]} 50. Rec1 {[%emt 0:00:23]} Raa7 {[%emt 0:00:05]} 51. Rc3 {[%emt 0:01:05]} Kf7 {[%emt 0:00:08]} 52. Ne2 {[%emt 0:00:18]} Ng6 {[%emt 0:00:07]} 53. Nd4 {[%emt 0:00:50]} Ke7 {[%emt 0:00:22]} 54. Bd3 {[%emt 0:00:48]} Nf4 {[%emt 0:00:07]} 55. Bb1 {[%emt 0:00:31]} Ng6 {[%emt 0:04:44]} 56. Ke3 {[%emt 0:01:52]} Kd8 {[%emt 0:01:03]} 57. Rf1 {[%emt 0:00:26]} Ke7 {[%emt 0:00:09]} 58. Rfc1 {[%emt 0:00:05]} Ne5 {[%emt 0:02:04]} 59. Nf3 {[%emt 0:00:21]} Nxf3 {[%emt 0:00:21]} 60. Kxf3 {[%emt 0:00:04]} Ra3 {[%emt 0:00:04]} 61. Bc2 {[%emt 0:00:50]} Bb5 {[%emt 0:01:37]} 62. Ke3 {[%emt 0:00:14]} Kd7 {[%emt 0:00:19]} 63. Bd1 {[%emt 0:00:37]} Ra2 {[%emt 0:01:39]} 64. Bc2 {[%emt 0:00:35]} Kd8 {[%emt 0:04:57]} 65. Kd4 {[%emt 0:00:30]} Ba6 {[%emt 0:00:50]} 66. Rf3 {[%emt 0:00:20]} Ke7 {[%emt 0:00:28]} 67. Rc3 {[%emt 0:00:16]} Rb4+ {[%emt 0:00:19]} 68. Ke3 {[%emt 0:00:05]} Kd8 {[%emt 0:00:21]} 69. Rb1 {[%emt 0:04:30]} Bb5 {[%emt 0:01:11]} 70. Rd1 {[%emt 0:00:32]} Rxc2 {[%emt 0:02:08]} 71. Rxc2 {[%emt 0:00:16]} Rxb3+ {[%emt 0:00:04]} 72. Kd2 {[%emt 0:02:17]} Rxh3 {[%emt 0:00:29]} 73. Rdc1 {[%emt 0:00:23]} Rd3+ {[%emt 0:02:08]} 74. Ke2 {[%emt 0:00:42]} Rg3+ {[%emt 0:01:53]} 75. Kf2 {[%emt 0:00:39]} Rxg4 {[%emt 0:01:41]} 76. Rxc7 {[%emt 0:00:04]} Bd7 {[%emt 0:00:05]} 77. Ra7 {[%emt 0:00:59]} Rxe4 {[%emt 0:01:06]} 78. Rcc7 {[%emt 0:00:35]} Re7 {[%emt 0:00:06]} 79. Rcb7 {[%emt 0:00:07]} Ke8 {[%emt 0:01:38]} 80. Rb8+ {[%emt 0:00:05]} Kf7 {[%emt 0:00:11]} 81. Rbb7 {[%emt 0:00:19]} Ke8 {[%emt 0:00:24]} 82. Rb8+ {[%emt 0:00:05]} Kf7 {[%emt 0:00:04]} 83. Rbb7 {[%emt 0:00:04]} 1/2-1/2

[Event "Coimbra Queima Fitas Open 2024"]
[Site "Coimbra"]
[Date "2024.04.28"]
[Round "6.10"]
[White "Vasconcelos, Paulo Jorge Lopes De"]
[Black "Pintor, Simao Maciel Abranch"]
[Result "1/2-1/2"]
[ECO "B38"]
[WhiteElo "2093"]
[BlackElo "2039"]
[Annotator "NA RC"]
[PlyCount "79"]
[EventDate "2024.04.23"]
[EventType "swiss"]
[EventCountry "POR"]
[SourceTitle "playchess.com"]
[Source "ChessBase"]
[SourceQuality "1"]
[TimeControl "5400+30"]

1. e4 {[%emt 0:00:02]} c5 {[%emt 0:09:18]} 2. Nf3 {[%emt 0:02:55]} Nc6 {[%emt 0:00:05]} 3. d4 {[%emt 0:00:13]} cxd4 {[%emt 0:00:05]} 4. Nxd4 {[%emt 0:00:06]} g6 {[%emt 0:00:06]} 5. c4 {[%emt 0:00:07]} Bg7 {[%emt 0:00:05]} 6. Be3 {[%emt 0:00:08]} Qb6 {[%emt 0:00:05]} 7. Nb5 {[%emt 0:01:27]} Qa5+ {[%emt 0:00:05]} 8. Bd2 {[%emt 0:01:20]} Qd8 {[%emt 0:06:14]} 9. N1c3 {[%emt 0:03:42]} a6 {[%emt 0:00:12]} 10. Na3 {[%emt 0:00:05]} d6 {[%emt 0:01:25]} 11. Rc1 {[%emt 0:02:57]} Nf6 {[%emt 0:00:40]} 12. Bd3 {[%emt 0:00:37]} O-O {[%emt 0:02:59]} 13. h3 {[%emt 0:07:23]} Be6 {[%emt 0:03:33]} 14. O-O {[%emt 0:00:31]} Rc8 {[%emt 0:04:20]} 15. b3 {[%emt 0:01:41]} Nd7 {[%emt 0:02:19]} 16. Nc2 {[%emt 0:02:21]} Nc5 {[%emt 0:04:30]} 17. Ne1 {[%emt 0:00:10]} Nd4 {[%emt 0:07:54]} 18. Bb1 {[%emt 0:01:23]} Bd7 {[%emt 0:00:47]} 19. Be3 {[%emt 0:00:29]} e5 {[%emt 0:00:48]} 20. Nc2 {[%emt 0:26:29]} Nce6 {[%emt 0:02:21]} 21. Nb4 {[%emt 0:00:30]} Bf6 {[%emt 0:11:32]} 22. Nbd5 {[%emt 0:02:24]} Bg5 {[%emt 0:01:01]} 23. f4 {[%emt 0:00:28]} Bh6 {[%emt 0:03:10]} 24. f5 {[%emt 0:13:09]} Bxe3+ {[%emt 0:00:05]} 25. Nxe3 {[%emt 0:00:07]} Nf4 {[%emt 0:06:23]} 26. Ned5 {[%emt 0:07:05]} Nxd5 {[%emt 0:00:45]} 27. Nxd5 {[%emt 0:00:45]} f6 {[%emt 0:01:51]} 28. Qd2 {[%emt 0:06:53]} Kg7 {[%emt 0:00:55]} 29. Rcd1 {[%emt 0:02:12]} b5 {[%emt 0:00:38]} 30. Ne3 {[%emt 0:01:08]} bxc4 {[%emt 0:00:42]} 31. Nxc4 {[%emt 0:01:35]} Bb5 {[%emt 0:02:33]} 32. Bd3 {[%emt 0:00:05]} Bxc4 {[%emt 0:05:36]} 33. Bxc4 {[%emt 0:00:19]} d5 {[%emt 0:04:00]} 34. Bd3 {[%emt 0:00:05]} Qb6 {[%emt 0:00:37]} 35. Kh1 {[%emt 0:01:01]} dxe4 {[%emt 0:02:56]} 36. Bxe4 {[%emt 0:00:08]} gxf5 {[%emt 0:01:20]} 37. Bxf5 {[%emt 0:00:31]} Nxf5 {[%emt 0:01:51]} 38. Qd7+ {[%emt 0:00:17]} Ne7 {[%emt 0:05:20]} 39. Qxe7+ {[%emt 0:01:38]} Rf7 {[%emt 0:00:01]} 40. Qd6 {[%emt 0:00:48]} 1/2-1/2